Cogmind - Beta 13 @@@ ROGUE MODE // 2024.04.07 @ 07:07:54 Player: BrainTooSmol Result: Self-destructed Performance ------------- Evolutions (2) 1000 Regions Visited (7) 1400 Robots Destroyed (104) 520 Value Destroyed (3117) 3117 Prototype IDs (1) 20 Alien Tech Used (0) 0 Bonus (44) 44 TOTAL SCORE: 6101 Bonus ------- High Alert Combat Kills 65 Follower Combat Kills 14 Friendly Fire -35 Cogmind --------- Core Integrity 290/550 Matter 298/300 Energy 100/100 System Corruption 3% Temperature Cool (0) Movement Core (350) Ox6 Location -8/Materials Parts ------- > --- POWER (1) -------- (None) > --- PROPULSION (3) --- (None) > --- UTILITY (5) ------ Large Storage Unit Machine Analyzer Signal Interpreter Improved Terrain Scan Processor > --- WEAPON (2) ------- (None) > --- INVENTORY (15) --- Light Nuclear Core Flight Unit Improved Flight Unit Improved Flight Unit Improved Flight Unit Cesium-ion Thruster Improved Sensor Array Makeshift Transmission Jammer ECM Suite Reaction Control System Makeshift Cloaking Device System Shield Rocket Launcher Mini Grenade Launcher Peak State ------------ > --- POWER ------------ Light Deuterium Engine > --- PROPULSION ------- Light Treads Light Treads Light Treads > --- UTILITY ---------- Large Storage Unit Machine Analyzer Signal Interpreter Improved Terrain Scanner Improved Terrain Scan Processor > --- WEAPON ----------- Mini Grenade Launcher Makeshift Axe > --- INVENTORY -------- Light Nuclear Core Wheel Armored Wheel Flight Unit Improved Flight Unit Improved Flight Unit Improved Flight Unit Cesium-ion Thruster Improved Sensor Array Makeshift Transmission Jammer ECM Suite Reaction Control System Makeshift Cloaking Device Rocket Launcher Mini Grenade Launcher [Rating: 27] Favorites ----------- Power Improved Ion Engine Engine Improved Ion Engine Power Core Light Nuclear Core Propulsion Light Treads Treads Light Treads Leg Improved Aluminum Leg Wheel Armored Wheel Flight Unit Improved Flight Unit Utility Large Storage Unit Device Sensor Array Storage Large Storage Unit Processor Signal Interpreter Hackware Hacking Suite Protection Hardened Light Armor Plating Weapon Medium Laser Energy Gun Medium Laser Ballistic Gun Light Assault Rifle Ballistic Cannon Improved Light Cannon Launcher Mini Grenade Launcher Slashing Weapon Makeshift Axe Build | -11 -10 -10 -9 -9 -9 -8 -8 ------- Run | Yrd Mat Min Mat Min Exi Min Mat Slots Evolved 4 | . . . 2 . . . 2 Power . | . . . . . . . . Propulsion 1 | . . . . . . . 1 Utility 3 | . . . 2 . . . 1 Weapon . | . . . . . . . . Parts Attached 60 | 6 8 3 18 1 1 6 17 Power 12 | 1 1 . 3 . . 2 5 Engine 8 | 1 1 . 3 . . 1 2 Core 4 | . . . . . . 1 3 Reactor . | . . . . . . . . Propulsion 20 | 2 4 1 5 . . 1 7 Treads 12 | 2 3 1 2 . . 1 3 Leg 2 | . . . . . . . 2 Wheel 5 | . . . 3 . . . 2 Hover . | . . . . . . . . Flight 1 | . 1 . . . . . . Utility 13 | 1 3 . 5 . 1 . 3 Device 2 | . . . 1 . . . 1 Storage 2 | 1 1 . . . . . . Processor 4 | . 1 . 1 . . . 2 Hackware 3 | . 1 . 1 . 1 . . Protection 2 | . . . 2 . . . . Artifact . | . . . . . . . . Weapon 15 | 2 . 2 5 1 . 3 2 Energy Gun 4 | . . . 3 . . 1 . Energy Cannon . | . . . . . . . . Ballistic Gun 4 | 2 . 1 . . . . 1 Ballistic Cannon 2 | . . . 1 . . 1 . Launcher 4 | . . 1 1 1 . 1 . Special Weapon . | . . . . . . . . Impact Weapon . | . . . . . . . . Slashing Weapon 1 | . . . . . . . 1 Piercing Weapon . | . . . . . . . . Special Melee Weapon . | . . . . . . . . Unidentified Prototypes 1 | . 1 . . . . . . Parts Lost 33 | . 1 5 7 . . 6 14 Power 8 | . 1 1 1 . . 2 3 Propulsion 11 | . . 1 3 . . . 7 Utility 6 | . . 1 2 . . 2 1 Weapon 8 | . . 2 1 . . 2 3 Highest Loss Streak 6 | . 1 4 2 . . 2 6 To Critical Strikes . | . . . . . . . . Average Slot Usage (%) 91 | . 98 81 87 100 100 91 87 Engine 10 | . 13 9 10 11 11 10 3 Treads 16 | . 27 27 8 11 11 11 17 Wheel 5 | . . . 7 11 11 11 . Device 1 | . . . 4 . . . 5 Storage 11 | . 14 14 11 11 11 11 9 Processor 10 | . 5 . 11 11 11 11 24 Hackware 5 | . 7 9 5 . 8 8 . Protection 6 | . . . 7 22 13 8 . Energy Gun 6 | . . . 14 11 11 4 . Ballistic Gun 6 | . 28 13 . . . . . Ballistic Cannon 3 | . . . 6 4 . 6 . Launcher 4 | . . 6 . 6 11 8 8 Naked Turns . | . . . . . . . . Heaviest Build 41 | 11 26 26 41 41 38 38 31 Greatest Support 60 | 40 40 40 40 12 12 20 60 Greatest Overweight (x) 9 | . . . 9 3 3 3 8 Average Overweight (x) 1 | . . . 2 3 2 2 . Largest Inventory Capacity 15 | 8 15 15 15 15 15 15 15 Average Capacity 14 | 7 11 15 15 15 15 15 15 Most Carried 15 | 2 10 10 14 15 15 15 15 Average Carried 11 | . 7 9 10 14 14 14 14 Final Capacity 15 | 8 15 15 15 15 15 15 15 Final Carried 15 | 2 10 10 13 15 15 14 14 Class Distribution -------------------- 52% | Mutant 42% | Scavenger-Mutant 5% | Scavenger-Assassin Dominant Class ---------------- Mutant | -10/Materials Mutant | -10/Mines Mutant | -9/Materials Scavenger-Mutant | -9/Mines Scavenger-Mutant | -9/Exiles Scavenger-Mutant | -8/Mines Scavenger-Assassin | -8/Materials Resources | -11 -10 -10 -9 -9 -9 -8 -8 ----------- Run | Yrd Mat Min Mat Min Exi Min Mat Matter Collected 1690 | 260 335 71 409 74 . 171 370 Remotely . | . . . . . . . . Salvage Created 3321 | . 729 45 1421 129 16 234 747 Parts 190 | . 53 2 64 18 . 5 48 Haulers Intercepted 2 | . 1 . 1 . . . . Recyclers Shooed 1 | . . . 1 . . . . Parts Field Recycled . | . . . . . . . . Retrieved Matter . | . . . . . . . . Parts Self-Destructed . | . . . . . . . . Prevented . | . . . . . . . . Kills | -11 -10 -10 -9 -9 -9 -8 -8 ------- Run | Yrd Mat Min Mat Min Exi Min Mat Combat Hostiles Destroyed 96 | . 20 14 29 10 . 7 16 Melee 7 | . . . . . . . 7 Guns 35 | . 20 1 9 2 . 2 1 Cannons 17 | . . . 15 1 . 1 . AOE 34 | . . 13 2 7 . 4 8 Classes Destroyed 12 | . 5 1 2 1 . 1 2 Worker 2 | . . . . . . . 2 Builder 1 | . . . . . . . 1 Tunneler 2 | . . . . . . 1 1 Hauler 2 | . 1 . 1 . . . . Recycler 3 | . . . 3 . . . . Operator 4 | . 2 . 2 . . . . Watcher 5 | . 1 . 3 . . . 1 Swarmer 21 | . 6 3 5 7 . . . Grunt 49 | . 14 . 15 2 . 7 11 Duelist 4 | . . . . 1 . . 3 Sentry 11 | . . . 9 . . . 2 Assembled 11 | . . 11 . . . . . Best Kill Streak 11 | . 4 11 4 4 . 4 6 Combat Bots Only 11 | . 3 11 4 4 . 3 3 Max Kills in Single Turn 6 | . 1 6 2 3 . 1 4 Gunslinging . | . . . . . . . . Exploded 6 | . . 6 2 3 . 1 3 Melee 1 | . . . . . . . 1 Uniques/NPCs Destroyed . | . . . . . . . . Combat | -11 -10 -10 -9 -9 -9 -8 -8 -------- Run | Yrd Mat Min Mat Min Exi Min Mat Hostile Shots Fired 395 | . 99 18 110 23 . 50 95 Missed 118 | . 32 9 38 4 . 12 23 Damage Taken 4416 | . 687 431 986 187 . 670 1455 Core 795 | . 157 14 146 31 . 187 260 Absorbed by Shields . | . . . . . . . . Regen/Repaired (Parts) 93 | . 93 . . . . . . Core Remaining (%) 46 | 100 . 31 . . . 9 . Volleys Fired 251 | . 65 12 101 11 3 31 28 Largest 2 | . 2 1 2 2 1 2 1 Hottest 100 | . 40 30 100 89 30 89 30 Shots Fired 438 | . 130 12 197 17 3 52 27 Gun 317 | . 130 6 137 6 . 21 17 Cannon 88 | . . . 59 6 . 23 . Launcher 33 | . . 6 1 5 3 8 10 Special . | . . . . . . . . Kinetic 241 | . 130 6 59 6 . 23 17 Thermal 164 | . . . 137 6 . 21 . Explosive 33 | . . 6 1 5 3 8 10 Electromagnetic . | . . . . . . . . Robot Hit Streak 19 | . 19 3 13 11 . 10 12 Robot Miss Streak 7 | . 4 1 4 7 . 4 1 Penetration Max . | . . . . . . . . Secondary Targets 6 | . 3 . 3 . . . . Max Gunslinging Chain 1 | . 1 . 1 . . . . Shots Hit Robots 325 | . 89 6 144 5 . 35 46 Core Hits 199 | . 43 24 58 13 5 19 37 Critical Kills . | . . . . . . . . Critical Parts Destroyed . | . . . . . . . . Critical Strikes 15 | . . . 7 1 . 4 3 Burn 9 | . . . 6 1 . 2 . Blast 3 | . . . 1 . . 2 . Sever 3 | . . . . . . . 3 Melee Attacks 49 | . . . . . . . 49 Impact . | . . . . . . . . Slashing 49 | . . . . . . . 49 Piercing . | . . . . . . . . Sneak Attacks 2 | . . . . . . . 2 Combat Hostiles . | . . . . . . . . Follow-up Attacks . | . . . . . . . . Damage Inflicted 8420 | . 931 1056 2300 446 381 957 2349 Guns 2661 | . 929 28 1271 26 . 211 196 Cannons 1258 | . . . 930 22 . 306 . Explosions 3373 | . . 1028 99 398 381 440 1027 Melee 1125 | . . . . . . . 1125 Ramming 3 | . 2 . . . . . 1 Kinetic 2411 | . 929 28 930 22 . 306 196 Thermal 1559 | . . . 1271 77 . 211 . Explosive 3322 | . . 1028 99 347 381 440 1027 Electromagnetic . | . . . . . . . . Impact . | . . . . . . . . Slashing 1125 | . . . . . . . 1125 Piercing . | . . . . . . . . Highest Corruption 10 | . . 10 . . . . 3 Average Corruption 4 | . . 10 . . . . 1 Corruption Purged . | . . . . . . . . Corruption Blocked . | . . . . . . . . Effects 17 | . . 12 . . . . 5 Message Errors 6 | . . 5 . . . . 1 Matter Fused 3 | . . 1 . . . . 2 Heat Flow Errors 1 | . . . . . . . 1 Energy Discharges 3 | . . 3 . . . . . Data Loss (minor) 2 | . . 2 . . . . . Data Loss (major) 1 | . . 1 . . . . . Weapon Failures 1 | . . . . . . . 1 Overload Shots . | . . . . . . . . Overflow Damage 137 | . . 28 2 31 31 1 44 Projectiles 2 | . . . 2 . . . . Explosions 97 | . . 28 . 31 31 1 6 Melee 38 | . . . . . . . 38 Knockbacks 8 | . . . 6 . . 2 . Impact . | . . . . . . . . Kinetic 8 | . . . 6 . . 2 . Secondary . | . . . . . . . . Self-Inflicted Damage 262 | . . 37 . 32 . 16 177 Shots 7 | . . 1 . 1 . 1 4 Rammed 1 | . . . . . . . 1 Targets Rammed 3 | . 1 . . . . . 2 Kicked 1 | . . . . . . . 1 Crushed 1 | . 1 . . . . . . Highest Temperature 322 | . 13 . 322 282 . 299 175 Average Temperature 90 | . 6 . 85 115 . 136 66 Received Heat Transfer 1647 | . 249 . 438 6 . 378 576 Effects 3 | . . . 2 . . 1 . Energy Bleed 1 | . . . . . . 1 . Interference 2 | . . . 2 . . . . Siege Activations . | . . . . . . . . Robots Corrupted . | . . . . . . . . Combat Hostiles . | . . . . . . . . Parts Fried . | . . . . . . . . Impact Corruptions . | . . . . . . . . Robots Melted 3 | . . . 3 . . . . Combat Hostiles 3 | . . . 3 . . . . Parts Melted 13 | . . . 10 . . 3 . Heat Transferred 5193 | . . . 4218 198 . 777 . Parts Sabotaged . | . . . . . . . . Parts Stolen . | . . . . . . . . Parts Stripped . | . . . . . . . . Power Chain Reactions . | . . . . . . . . Alert | -11 -10 -10 -9 -9 -9 -8 -8 ------- Run | Yrd Mat Min Mat Min Exi Min Mat Peak Influence 510 | . 197 160 510 277 . 164 439 Initial 174 | . . 73 . 174 . . 63 Average 146 | . 106 67 247 187 . 25 229 Maximum Alert Level 2 | . . . 2 1 . . 2 Low Security (%) 77 | 100 100 100 48 79 . 100 47 Level 1 13 | . . . 24 20 . . 36 Level 2 8 | . . . 26 . . . 15 Level 3 . | . . . . . . . . Level 4 . | . . . . . . . . Level 5 . | . . . . . . . . High Security . | . . . . . . . . Max Security . | . . . . . . . . Squads Dispatched 11 | . 5 . 3 . . . 3 Investigation 3 | . 3 . . . . . . Extermination . | . . . . . . . . Reinforcement 8 | . 2 . 3 . . . 3 Assault . | . . . . . . . . Garrison . | . . . . . . . . Intercept . | . . . . . . . . Searches Triggered . | . . . . . . . . Construction Impeded 1 | . . . . . . . 1 Haulers Reinforced . | . . . . . . . . Active Scanning Responses . | . . . . . . . . Cargo Convoy Interrupts . | . . . . . . . . Stealth | -11 -10 -10 -9 -9 -9 -8 -8 --------- Run | Yrd Mat Min Mat Min Exi Min Mat Distress Signals 13 | . 2 . 6 . . . 5 Communications Jammed . | . . . . . . . . Distress Signals . | . . . . . . . . Times Spotted 159 | . 34 16 54 10 . 11 34 Peak Tracking Total 9 | . 4 9 5 4 . 3 6 Tactical Retreats 15 | . 2 . 3 . . 2 8 Traps | -11 -10 -10 -9 -9 -9 -8 -8 ------- Run | Yrd Mat Min Mat Min Exi Min Mat Traps Triggered 5 | . 3 . . . . . 2 Indirectly . | . . . . . . . . Trap Hack Attempts . | . . . . . . . . Triggered . | . . . . . . . . Disarmed . | . . . . . . . . Reprogrammed . | . . . . . . . . Reused . | . . . . . . . . Traps Extracted . | . . . . . . . . Installed . | . . . . . . . . Triggered . | . . . . . . . . Machines | -11 -10 -10 -9 -9 -9 -8 -8 ---------- Run | Yrd Mat Min Mat Min Exi Min Mat Machines Disabled 8 | . . 1 1 2 . . 4 Max in Single Turn 2 | . . 1 1 1 . . 2 Garrison Access 1 | . . . . . . . 1 Machines Repaired . | . . . . . . . . Machines Dismantled . | . . . . . . . . Machines Sabotaged . | . . . . . . . . Overloaded Fab Kills . | . . . . . . . . Hacking | -11 -10 -10 -9 -9 -9 -8 -8 --------- Run | Yrd Mat Min Mat Min Exi Min Mat Machines Accessed 23 | . 8 . 10 1 1 . 3 Terminals 14 | . 6 . 6 1 . . 1 Fabricators . | . . . . . . . . Repair Stations 1 | . 1 . . . . . . Recycling Units 3 | . 1 . 2 . . . . Scanalyzers 3 | . . . 2 . . . 1 Garrison Access 1 | . . . . . . . 1 Total Hacks 59 | . 16 . 24 3 4 . 12 Successful 34 | . 9 . 12 1 4 . 8 Failed 25 | . 7 . 12 2 . . 4 Catastrophic 5 | . 1 . 2 2 . . . Database Lockouts . | . . . . . . . . Manual 25 | . 7 . 15 3 . . . Terminals 35 | . 13 . 16 3 . . 3 Fabricators . | . . . . . . . . Repair Stations 2 | . 2 . . . . . . Recycling Units 4 | . 1 . 3 . . . . Scanalyzers 11 | . . . 5 . . . 6 Garrison Access 3 | . . . . . . . 3 Terminal Hacks 12 | . 5 . 1 1 4 . 1 Record 4 | . . . . . 4 . . Part Schematic 3 | . 2 . . 1 . . . Robot Analysis 1 | . 1 . . . . . . Branch Access Points 1 | . . . . . . . 1 Terminal Index 1 | . 1 . . . . . . Maintenance Status 1 | . . . 1 . . . . Hauler Manifests 1 | . 1 . . . . . . Fabricator Hacks . | . . . . . . . . Repair Station Hacks 2 | . 2 . . . . . . Scan Component 1 | . 1 . . . . . . Repair 1 | . 1 . . . . . . Recycling Unit Hacks 3 | . 1 . 2 . . . . Report Inventory 3 | . 1 . 2 . . . . Scanalyzer 10 | . . . 4 . . . 6 Insert Component 5 | . . . 2 . . . 3 Analyze 5 | . . . 2 . . . 3 Garrison Access Hacks 1 | . . . . . . . 1 Seal Access 1 | . . . . . . . 1 Unauthorized Hacks 6 | . 1 . 5 . . . . Terminals 5 | . 1 . 4 . . . . Assimilate 2 | . 1 . 1 . . . . Botnet 3 | . . . 3 . . . . Fabricators . | . . . . . . . . Repair Stations . | . . . . . . . . Recycling Units 1 | . . . 1 . . . . Reject 1 | . . . 1 . . . . Scanalyzers . | . . . . . . . . Garrison Access . | . . . . . . . . Data Cores Recovered . | . . . . . . . . Used . | . . . . . . . . Hacking Detections 19 | . 7 . 8 1 . . 3 Full Trace Events . | . . . . . . . . Feedback Events . | . . . . . . . . Feedback Blocked . | . . . . . . . . Robot Schematics Acquired . | . . . . . . . . Robots Built . | . . . . . . . . Authchips . | . . . . . . . . Time . | . . . . . . . . Total Robot Build Rating . | . . . . . . . . Part Schematics Acquired 8 | . 2 . 2 1 . . 3 Parts Built . | . . . . . . . . Authchips . | . . . . . . . . Time . | . . . . . . . . Total Part Build Rating . | . . . . . . . . Parts Repaired 1 | . 1 . . . . . . Time 26 | . 26 . . . . . . Parts Recycled . | . . . . . . . . Recycled Matter . | . . . . . . . . Retrieved Matter . | . . . . . . . . Retrieved Components . | . . . . . . . . Parts Scanalyzed 5 | . . . 2 . . . 3 Part Schematics Acquired 5 | . . . 2 . . . 3 Parts Damaged . | . . . . . . . . Bothacking | -11 -10 -10 -9 -9 -9 -8 -8 ------------ Run | Yrd Mat Min Mat Min Exi Min Mat Used RIF Installer . | . . . . . . . . Robots Hacked . | . . . . . . . . Non-combat . | . . . . . . . . Combat . | . . . . . . . . Robot Hacks Applied . | . . . . . . . . Relay Couplers Released . | . . . . . . . . Fabnet Peak Effective % . | . . . . . . . . Robots Rewired . | . . . . . . . . Allies Hacked . | . . . . . . . . Hacks Repelled . | . . . . . . . . Allies | -11 -10 -10 -9 -9 -9 -8 -8 -------- Run | Yrd Mat Min Mat Min Exi Min Mat Total Allies 5 | . . 5 . . . . . Largest Group 3 | . . 3 1 . . . . Highest-Rated Group 46 | . . 46 16 . . . . Highest-Rated Ally 31 | . . 31 16 . . . . Total Orders . | . . . . . . . . Ally Attacks 10 | . . 7 3 . . . . Total Damage 132 | . . 84 48 . . . . Kills 3 | . . 1 2 . . . . Allies Corrupted . | . . . . . . . . Allies Melted . | . . . . . . . . Intel | -11 -10 -10 -9 -9 -9 -8 -8 ------- Run | Yrd Mat Min Mat Min Exi Min Mat Robot Analysis Total 1 | . 1 . . . . . . Derelict Logs Recovered 3 | . . 1 . 2 . . . Drone Launches . | . . . . . . . . Drone Recoveries . | . . . . . . . . Exploration | -11 -10 -10 -9 -9 -9 -8 -8 ------------- Run | Yrd Mat Min Mat Min Exi Min Mat Turns Passed 8860 | 59 1546 1040 2112 950 683 1487 983 Spaces Moved 4508 | 30 759 591 911 627 549 659 382 Core 71 | 3 . . 65 . . . 3 Treads 2035 | 27 759 591 194 . . 187 277 Legs 65 | . . . . . . . 65 Wheels 2337 | . . . 652 627 549 472 37 Hover . | . . . . . . . . Flight . | . . . . . . . . Fastest Speed 50 | 50 160 160 110 135 120 120 110 Average Speed 153 | 149 160 160 167 135 122 159 162 Slowest Speed 500 | 160 160 160 500 135 135 240 450 Overloaded Moves . | . . . . . . . . Propulsion Burnouts . | . . . . . . . . Robots Hopped . | . . . . . . . . Cave-ins Triggered 1 | . . 1 . . . . . Exploration Rate (%) 75 | 4 95 97 83 99 90 95 38 Regions Visited 7 Branch Regions 4 Pre-discovered Areas 1 | . . . . . 1 . . Known Exits Taken 4 | . . . 1 1 1 1 . Unknown Exits Taken 3 | 1 1 1 . . . . . Scrap Searched 5 | . . 1 . 3 . 1 . Spaces Dug 5 | . . . . . . . 5 Terrain Destroyed 287 | . . 65 9 48 11 65 89 Melee 5 | . . . . . . . 5 Projectile 2 | . . . . 1 . 1 . AOE 280 | . . 65 9 47 11 64 84 Terrain Rammed . | . . . . . . . . Walls Destroyed . | . . . . . . . . Machines Disabled . | . . . . . . . . Actions | -11 -10 -10 -9 -9 -9 -8 -8 --------- Run | Yrd Mat Min Mat Min Exi Min Mat Total 5956 | 41 973 674 1299 713 557 1042 657 Wait 1042 | 4 125 68 256 73 1 345 170 Move 4500 | 29 758 589 910 626 548 658 382 Hop . | . . . . . . . . Pick Up 35 | 2 11 1 9 2 2 1 7 Fast Attach 26 | 6 3 . 9 . . 2 6 Attach 20 | . 2 1 8 . 1 1 7 Detach 2 | . . . 2 . . . . Swap 14 | . 3 2 1 1 . 3 4 Drop 13 | . 5 . 3 . 2 1 2 Fire 251 | . 65 12 101 11 3 31 28 Melee 49 | . . . . . . . 49 Ram 1 | . . . . . . . 1 Kick 1 | . . . . . . . 1 Crush 1 | . 1 . . . . . . Escape Stasis 1 | . . 1 . . . . . Rewire . | . . . . . . . . Trap . | . . . . . . . . Miscellaneous . | . . . . . . . . Route ------- -11/Scrapyard -10/Materials (discovered 4 exits: *Mat x3 / [*Min]) -10/Mines (discovered 2 exits: *Mat x2) -9/Materials (discovered 4 exits: *Mat x2 / *Min x2) -9/Mines (discovered 3 exits: *Mat x2 / *Exi) -9/Exiles (discovered 2 exits: *Min x2) -8/Mines (discovered 2 exits: *Mat x2) -8/Materials (discovered 1 exit: [*Fac]) History --------- Turn | Location | Event 36 | -11/Scrapyard | Discovered new exit (range 13) 60 | -11/Scrapyard | Entered Materials 308 | -10/Materials | Build established: Mutant 610 | -10/Materials | Discovered new exit (range 13) 702 | -10/Materials | Discovered new exit (range 12) 757 | -10/Materials | Discovered new exit (range 15) 1117 | -10/Materials | Repaired Lgt. Treads 1552 | -10/Materials | Discovered new exit (range 14) 1573 | -10/Materials | Core integrity fell below 50% 1606 | -10/Materials | Entered Mines 1777 | -10/Mines | Discovered new exit (range 16) 1870 | -10/Mines | A weapon hastily lodged in a ceiling crevice suddenly fell to the ground 1890 | -10/Mines | Learned Materials trap positions 2005 | -10/Mines | Assembled infested the area 2010 | -10/Mines | Assisted by a Guerilla fighting off Assembled 2057 | -10/Mines | Destroyed 11 combat bots 2100 | -10/Mines | Discovered new exit (range 12) 2303 | -10/Mines | Assisted by bots powering up and referring to "LRC-V3" 2319 | -10/Mines | Crushed by falling debris 2320 | -10/Mines | System corruption reached 10% 2350 | -10/Mines | Lost 4 parts (1p1u2w) 2646 | -10/Mines | Entered Materials 2646 | -9/Materials | Accompanied by 1 ally 2646 | -9/Materials | Evolved 2 slots: Utility x2 2647 | -9/Materials | Loaded intel: 30 trap records 3460 | -9/Materials | Discovered new exit (range 8) 3535 | -9/Materials | Identified exit to Mines 3899 | -9/Materials | Discovered exit to Mines (range 8) 4164 | -9/Materials | Discovered new exit (range 4) 4171 | -9/Materials | Identified exit to Materials 4436 | -9/Materials | Build established: Scavenger-Mutant 4643 | -9/Materials | Discovered exit to Materials (range 4) 4758 | -9/Materials | Entered Mines 5000 | -9/Mines | Learned Materials garrison access intel 5173 | -9/Mines | Discovered exit to Materials (range 16) 5200 | -9/Mines | Received a Rocket Launcher from a helpful Derelict 5256 | -9/Mines | Discovered exit to Materials (range 14) 5500 | -9/Mines | Deemed a non-threat by the Exiles lab entrance 5500 | -9/Mines | Discovered new exit (range 5) 5582 | -9/Mines | Learned Materials emergency access door positions 5707 | -9/Mines | Identified exit to Exiles 5708 | -9/Mines | Entered Exiles 5708 | -9/Exiles | Found Exiles lab destroyed 5843 | -9/Exiles | Learned location of Zion (-6) 6235 | -9/Exiles | Discovered new exit (range 14) 6247 | -9/Exiles | Identified exit to Mines 6378 | -9/Exiles | Discovered exit to Mines (range 14) 6391 | -9/Exiles | Entered Mines 6396 | -8/Mines | Discovered exit to Materials (range 14) 7073 | -8/Mines | Discovered exit to Materials (range 12) 7317 | -8/Mines | Core integrity fell below 50% 7598 | -8/Mines | Core integrity fell below 20% 7650 | -8/Mines | Build established: Mutant 7878 | -8/Mines | Entered Materials 7878 | -8/Materials | Evolved 2 slots: Propulsion x1, Utility x1 7880 | -8/Materials | Loaded intel: 1 garrison access location 8408 | -8/Materials | Build established: Scavenger-Assassin 8483 | -8/Materials | Discovered new exit (range 12) 8623 | -8/Materials | Lost 6 parts (1p4n1u) 8861 | -8/Materials | Self-destructed Last Messages --------------- 08795_ Y-45 Defender destroyed. 08798_ Atomic Centrifuge disabled. 08799_ Destroyed Lgt. Nuclear Core. 08804_ Mak. Axe destroyed. 08805_ Acquired 30 matter. 08809_ Acquired Hvy. Assault Rifle. 08811_ Destroyed Particle Gun. 08825_ R-06 Scavenger collects Lgt. Treads. 08828_ R-06 Scavenger collects Heat Sink. 08828_ Imp. Aluminum Leg destroyed. 08829_ Y-45 Defender destroyed. 08831_ R-06 Scavenger collects Lgt. Treads. 08831_ Acquired 30 matter. 08836_ R-06 Scavenger collects Lgt. Treads. 08854_ Hvy. Assault Rifle destroyed. 08854_ Kicked G-47 Trooper. 08856_ Imp. Aluminum Leg destroyed. 08857_ Slammed into G-47 Trooper. 08857_ Destabilizing: System corrupted (+2). 08860_ Imp. Ion Engine destroyed. Map ----- +----------------------------------------------------+ | ??????????????????????????????????????? | | ??????????????????????????????????????? | | ??????????????????????????????????????# """ # | | ??????????????????????????????????????# """ # | | ???????????????????????"""?"""????????# """ # | | ???????????????????????"""?"""????????# """ ? # | | ???????????????????????"""?"""????????# """ # | | ?????????"""??"???????????????????????# ?? # | | ?????????"""??"???????????????????????# + | | ?????????"""??"?????????"""?"""???????# """ # | | ??????????????T???????? """?"""?????#?# """ # | | ?????????"""??"???????? """?"""???###?# """ # | | ?????????"""??"????????? ???????? ##### """ # | | ?????????"""??"??????###+############## """ # | | ?????????????????????? # | | ??????????????????????? # | | ???????????????????????? # | | ????????????????????????# ############+##### # | | ?????????????????#+###??# #?## # # | | ?????????????????? ?# ##?# " """"" # # | | ?????????????????""" ""?# #### """"""""" # # | | ?????????????????""" T" # + """ """ # %# | | ???????????# == """ "" # #### # !# | | ??????????# # gg#### # = # | | ????????????????#+########g##############+#### # | | ?????????????????????# @ ######## % | | ?????????????????????# #?#?#### | | ?????????????????????# " """ ###?#?## | | ?????????????????????# """ """ ######## % | | ?????????????????????# """ """ ######## %% | | ?????????????????????# ######## !* " | | ?????????????????????# ##???### %! " " | | ????????????""???????# ####?#?#=[""" """ | | ????????"""?"""??????##############?### = | | ????????"""??S"????????????###???##??## | | ????????"""???????????????#??######??##! """ """ | | ??????????????????????????#???#?#####?# """ """ | | ???????????????????????????#?"T" # """ """ | | ???????????????????????????? ??""" # | | ???????????????????????????? ??? """?# | | ????????????????????????????? """?+ ###+##### | | ????????????????????????????? ???? ??# # ? ?#? | | ??????????????????????????????? ????# < # ??? ?? | | ??????????????????????????????? ???? #^ # ? ? ?#? | | ??????????????????????+????+????? ???#####???????? | | ????????????????????????????????#??#????????? ? ?? | | ??????????????????????????????#??#???###?? ? ? ?? | | ?????????????????????????????????????#?#???#??##?? | | ????????????????????????????????????#?#???##?#???? | | ?????????????????????????????????????????????????? | +----------------------------------------------------+ Best States ------------- Heat Dissipation 31 Energy Generation 14 Energy Capacity 265 Matter Stores 300 Matter Capacity 300 Sight Range 16 Robot Scan Range 14 Terrain Scan Range 16 Terrain Scan Density 110 Armor Coverage 300 Evasion (%) 40 Recoil Reduction 3 Offensive Hacking 10 Item Schematics ----------------- Sml. Storage Unit | -10/Materials | Hacked Lgt. Ion Engine | -10/Materials | Hacked Hacking Suite | -9/Materials | Scanalyzed ECM Suite | -9/Materials | Scanalyzed Mni. Grenade Launcher | -9/Mines | Hacked Imp. Sensor Array | -8/Materials | Scanalyzed Mak. Cloaking Device | -8/Materials | Scanalyzed Mak. Transmission Jammer | -8/Materials | Scanalyzed Robot Schematics ------------------ None Fabricated ------------ Nothing Alien Tech Used ----------------- None Achievements -------------- Omniscient Cartographer Challenges ------------ None Game ------ Seed LightRocketTreads Manual? 0 Play Time 01:00:31 Cumulative 28.5 hours Start 2024.04.07 @ 06:09:32 End 2024.04.07 @ 07:07:54 Sessions 1 Manual Loads 0 Difficulty Rogue Special Mode None Game No. 20 Rogue 20 Adventurer 0 Explorer 0 Win Type - Total 1 Types 1/0/0/0/0/0/0/0/0 Lore% 25 Gallery% 28 Achievement% 30 Wizard Run 0 Options --------- Layout 0 ASCII 0 Keyboard 0 Movement Mouse Keybinds 0 Fullscreen 1 Font 18/SmallcapsGlow Map View 76x50 Zoom Use 0% Tactical HUD 1 Map Filters NONE Filters NONE Steam 1 RUN: 17c84624-9396-478b-8baa-3f7a7269b59c